[Event "RUDAR VI-GM 2024"]
[Site "Pozarevac"]
[Date "2024.02.12"]
[Round "3.3"]
[White "Sutormin, Danila"]
[Black "Ahmadzada, Ahmad"]
[Result "0-1"]
[ECO "B22"]
[WhiteElo "2353"]
[BlackElo "2501"]
[Annotator "TA"]
[PlyCount "50"]
[EventDate "2024.02.12"]
[EventType "tourn"]
[EventCountry "SRB"]
[SourceTitle "playchess.com"]
[Source "ChessBase"]
[SourceQuality "1"]
[TimeControl "5400+30"]

{[%evp 13,50,2,0,0,0,11,16,16,37,10,14,0,14,0,0,-7,-4,-14,0,-36,-6,-41,-40,-191,-187,-187,-194,-300,-295,-321,-320,-327,-298,-299,-260,-253,-243,-273,-265]} 1. e4 {[%emt 0:00:03][%cal Be2e4,Be4e5][%mdl 32]} c5 {[%emt 0:00:31]} 2. c3 {[%emt 0:00:13]} Nf6 {[%emt 0:00:16]} 3. e5 {[%emt 0:00:09]} Nd5 {[%emt 0:00:08]} 4. Bc4 {[%emt 0:00:11]} e6 {[%emt 0:02:48]} 5. d4 {[%emt 0:00:10]} cxd4 {[%emt 0:02:59]} 6. cxd4 {[%emt 0:00:06]} d6 {[%emt 0:00:09]} 7. Nf3 {[%emt 0:00:06]} Be7 {[%emt 0:00:04]} 8. O-O {[%emt 0:00:06]} O-O {[%emt 0:00:03]} 9. Qe2 {[%emt 0:00:07]} Bd7 {[%emt 0:00:05]} 10. Nc3 {[%emt 0:09:08] The position is equal.} Nxc3 {[%emt 0:00:16]} 11. bxc3 {[%emt 0:00:04]} Bc6 {[%emt 0:00:11]} 12. Bf4 {[%emt 0:07:59]} Bxf3 {[%emt 0:08:06]} 13. Qxf3 {[%emt 0:01:19]} Nc6 {[%emt 0:00:10]} 14. Rfe1 {[%emt 0:10:22]} dxe5 {[%emt 0:04:40]} 15. dxe5 {[%emt 0:02:01]} Qc7 {[%emt 0:04:53]} 16. Qg4 {[%emt 0:25:06]} Rfd8 {[%emt 0:05:18]} 17. Re3 {[%emt 0:00:48]} g6 {[%emt 0:05:49]} 18. Bxe6 $2 {[%emt 0:08:27] This costs White the game.} fxe6 $19 {[%emt 0:01:23]} 19. Qxe6+ {[%emt 0:00:07]} Kh8 {[%emt 0:01:34]} 20. Rh3 {[%emt 0:00:16] [#]} (20. Rae1 $142) 20... Qd7 $1 {[%emt 0:00:39]} 21. Qb3 {[%emt 0:01:32] Prevents Qd1+.} (21. Qxg6 $2 {leads to mate.} Qd1+ 22. Rxd1 Rxd1#) 21... Qf5 {[%emt 0:07:50][%csl LRe5,LRf4]} 22. Be3 {[%emt 0:02:17]} b6 {[%emt 0:07:41][%cal Od8d3]} ({Not} 22... Nxe5 23. Bd4 $19) 23. Re1 {[%emt 0:01:43]} Nxe5 {[%emt 0:04:39]} 24. Bd4 {[%emt 0:16:26]} Bf6 {[%emt 0:00:14]} 25. Rhe3 {[%emt 0:00:34]} Ng4 $1 {[%emt 0:01:49][%csl LRd4,LRe3,LRf2] Weighted Error Value: White=0.32/Black=0.07 (flawless) .  Mistake:       	White=2     	---        Inaccurate:     	White=3     	---        OK:         	White=4     	Black=8      Best:        	---       	Black=1      Strong:       	---       	Black=1} 0-1

[Event "RUDAR VI-GM 2024"]
[Site "Pozarevac"]
[Date "2024.02.12"]
[Round "3.4"]
[White "Velpula Sarayu"]
[Black "Garifullina, Leya"]
[Result "1/2-1/2"]
[ECO "C83"]
[WhiteElo "2444"]
[BlackElo "2422"]
[Annotator "RC"]
[PlyCount "88"]
[EventDate "2024.02.12"]
[EventType "tourn"]
[EventCountry "SRB"]
[SourceTitle "playchess.com"]
[Source "ChessBase"]
[SourceQuality "1"]
[TimeControl "5400+30"]

1. e4 {[%emt 0:00:11]} e5 {[%emt 0:01:42]} 2. Nf3 {[%emt 0:00:34]} Nc6 {[%emt 0:00:06]} 3. Bb5 {[%emt 0:00:32]} a6 {[%emt 0:00:06]} 4. Ba4 {[%emt 0:00:29]} Nf6 {[%emt 0:00:07]} 5. O-O {[%emt 0:00:30]} Nxe4 {[%emt 0:00:25]} 6. d4 {[%emt 0:00:27]} b5 {[%emt 0:00:06]} 7. Bb3 {[%emt 0:00:34]} d5 {[%emt 0:00:06]} 8. dxe5 {[%emt 0:00:34]} Be6 {[%emt 0:00:07]} 9. c3 {[%emt 0:00:24]} Be7 {[%emt 0:00:22]} 10. Nbd2 {[%emt 0:01:26]} O-O {[%emt 0:00:31]} 11. Bc2 {[%emt 0:00:50]} f5 {[%emt 0:00:19]} 12. Nb3 {[%emt 0:00:36]} Qd7 {[%emt 0:00:15]} 13. Nfd4 {[%emt 0:02:11]} Nxd4 {[%emt 0:00:08]} 14. Nxd4 {[%emt 0:00:05]} c5 {[%emt 0:00:07]} 15. Nxe6 {[%emt 0:00:05]} Qxe6 {[%emt 0:00:04]} 16. f3 {[%emt 0:00:08]} Ng5 {[%emt 0:00:05]} 17. Bf4 {[%emt 0:00:05]} Rad8 {[%emt 0:07:36]} 18. Kh1 {[%emt 0:01:50]} c4 {[%emt 0:07:02]} 19. a4 {[%emt 0:24:24]} Qb6 {[%emt 0:10:27]} 20. axb5 {[%emt 0:07:35]} axb5 {[%emt 0:00:11]} 21. Bxg5 {[%emt 0:00:49]} Bxg5 {[%emt 0:00:04]} 22. f4 {[%emt 0:02:12]} Be7 {[%emt 0:00:13]} 23. b3 {[%emt 0:00:23]} g6 {[%emt 0:04:44]} 24. Qf3 {[%emt 0:02:29]} d4 {[%emt 0:06:05]} 25. bxc4 {[%emt 0:02:17]} bxc4 {[%emt 0:00:24]} 26. Rab1 {[%emt 0:06:29]} Qc5 {[%emt 0:01:18]} 27. cxd4 {[%emt 0:00:53]} Rxd4 {[%emt 0:00:45]} 28. Rfc1 {[%emt 0:08:06]} Rfd8 {[%emt 0:03:11]} 29. Bd1 {[%emt 0:04:42]} Re4 {[%emt 0:05:20]} 30. Qf1 {[%emt 0:01:50]} Kf8 {[%emt 0:04:30]} 31. Be2 {[%emt 0:10:34]} c3 {[%emt 0:06:42]} 32. Rb3 {[%emt 0:07:50]} Re3 {[%emt 0:02:26]} 33. Rb5 {[%emt 0:03:56]} Qa3 {[%emt 0:08:44]} 34. Bc4 {[%emt 0:05:11]} Rd2 {[%emt 0:08:49]} 35. Rb3 {[%emt 0:01:51]} Qa5 {[%emt 0:00:15]} 36. Rb8+ {[%emt 0:00:36]} Bd8 {[%emt 0:02:11]} 37. Qg1 {[%emt 0:03:21]} Qa7 {[%emt 0:02:26]} 38. Rxc3 {[%emt 0:00:35]} Rxc3 {[%emt 0:07:55]} 39. Qxa7 {[%emt 0:00:09]} Rd1+ {[%emt 0:00:06]} 40. Qg1 {[%emt 0:00:04]} Rxg1+ {[%emt 0:00:03]} 41. Kxg1 {[%emt 0:00:04]} Rxc4 {[%emt 0:00:03]} 42. Rxd8+ {[%emt 0:00:05]} Ke7 {[%emt 0:00:03]} 43. Rh8 {[%emt 0:00:27]} Rxf4 {[%emt 0:00:03]} 44. Rxh7+ {[%emt 0:00:04]} Ke6 {[%emt 0:00:10]} 1/2-1/2

[Event "RUDAR VI-GM 2024"]
[Site "Pozarevac"]
[Date "2024.02.12"]
[Round "3.5"]
[White "Volkov, Dmitriy"]
[Black "Kotronias, Vasilios"]
[Result "1/2-1/2"]
[ECO "A57"]
[WhiteElo "2268"]
[BlackElo "2453"]
[Annotator "TA"]
[PlyCount "55"]
[EventDate "2024.02.12"]
[EventType "tourn"]
[EventCountry "SRB"]
[SourceTitle "playchess.com"]
[Source "ChessBase"]
[SourceQuality "1"]
[TimeControl "5400+30"]

{[%evp 16,55,37,32,27,23,25,18,20,10,0,0,35,4,45,56,70,66,67,77,75,65,100,34,39,29,76,74,77,66,92,56,84,85,85,74,69,63,83,79,83,32]} 1. d4 {[%emt 0:00:01]} Nf6 {[%emt 0:02:19]} 2. c4 {[%emt 0:00:07]} c5 {[%emt 0:00:13]} 3. d5 {[%emt 0:00:12]} b5 {[%emt 0:00:06]} 4. cxb5 {[%emt 0:00:11]} a6 {[%emt 0:00:05]} 5. e3 {[%emt 0:00:29]} g6 {[%emt 0:01:25]} 6. Nc3 {[%emt 0:00:44]} Bg7 {[%emt 0:00:17]} 7. Nf3 {[%emt 0:01:24]} O-O {[%emt 0:00:19]} 8. bxa6 {[%emt 0:06:23]} d6 {[%emt 0:08:02]} 9. Be2 {[%emt 0:08:39]} Bxa6 {[%emt 0:01:12]} 10. O-O {[%emt 0:01:15]} Qb6 {[%emt 0:01:41]} 11. Rb1 {[%emt 0:07:46]} Nfd7 {[%emt 0:18:48] [#] Threatens to win with ...Bxc3. The position is equal.} 12. Bd2 {[%emt 0:02:59]} Bxe2 {[%emt 0:02:16]} 13. Qxe2 {[%emt 0:00:18]} Na6 {[%emt 0:00:54]} 14. b3 {[%emt 0:08:44]} Bxc3 {[%emt 0:04:22]} 15. Bxc3 {[%emt 0:00:30]} Nb4 {[%emt 0:00:03]} 16. Bxb4 {[%emt 0:00:36]} Qxb4 {[%emt 0:00:16]} 17. e4 {[%emt 0:10:19]} Nf6 {[%emt 0:03:24]} 18. Rfe1 {[%emt 0:02:41]} Qa3 {[%emt 0:00:13]} 19. e5 {[%emt 0:04:32]} (19. Ra1 $16) 19... Nxd5 $14 {[%emt 0:03:25]} 20. Qd2 {[%emt 0:00:40] Repels Nc3} Nc7 {[%emt 0:03:03]} (20... e6 $11) 21. exd6 $16 {[%emt 0:02:47]} exd6 {[%emt 0:00:05]} 22. Qxd6 {[%emt 0:01:26]} Ne6 {[%emt 0:01:10][%cal Oa8d8]} 23. Re2 {[%emt 0:05:58]} Rad8 {[%emt 0:03:09]} 24. Qe5 {[%emt 0:00:56] White is much more active.} Qa6 {[%emt 0:12:17]} 25. Rbe1 {[%emt 0:03:58]} c4 {[%emt 0:01:22]} 26. h4 {[%emt 0:01:51]} cxb3 {[%emt 0:01:14]} 27. axb3 {[%emt 0:00:10]} Qd6 {[%emt 0:05:03]} 28. Qxd6 {[%emt 0:04:48] Weighted Error Value: White=0.10 (very precise) /Black=0.13 (very precise) .  Mistake:       	White=2     	Black=1      Inaccurate:     	White=2     	Black=5      OK:         	White=5     	Black=6      Best:        	White=3     	Black=1} (28. Qc3 $16) 1/2-1/2

[Event "RUDAR VI-GM 2024"]
[Site "Pozarevac"]
[Date "2024.02.12"]
[Round "4.1"]
[White "Krishna Teja, N."]
[Black "Kotronias, Vasilios"]
[Result "0-1"]
[ECO "E68"]
[WhiteElo "2349"]
[BlackElo "2453"]
[Annotator "TA"]
[PlyCount "74"]
[EventDate "2024.02.12"]
[EventType "tourn"]
[EventCountry "SRB"]
[SourceTitle "playchess.com"]
[Source "ChessBase"]
[SourceQuality "1"]
[TimeControl "5400+30"]

{[%evp 22,74,44,42,47,36,39,25,2,5,30,26,51,0,0,0,0,0,0,-99,-94,-175,-165,-286,-289,-295,-286,-287,-292,-290,-266,-272,-193,-304,-308,-333,-314,-332,-326,-322,-319,-346,-330,-402,-433,-623,-659,-631,-649,-670,-657,-1202,-1151,-1429,-1407]} 1. d4 {[%emt 0:10:24]} Nf6 {[%emt 0:00:07]} 2. c4 {[%emt 0:00:03]} g6 {[%emt 0:00:04]} 3. g3 {[%emt 0:00:08]} Bg7 {[%emt 0:00:12]} 4. Bg2 {[%emt 0:00:06]} O-O {[%emt 0:00:19]} 5. Nc3 {[%emt 0:00:04]} d6 {[%emt 0:00:07]} 6. Nf3 {[%emt 0:00:18][%cal Bg1f3,Bf3d4,Bd4b5][%mdl 32]} Nbd7 {[%emt 0:00:09]} 7. O-O {[%emt 0:00:12]} e5 {[%emt 0:00:09]} 8. e4 {[%emt 0:00:06]} exd4 {[%emt 0:00:06]} 9. Nxd4 {[%emt 0:00:05]} Re8 {[%emt 0:00:08]} 10. Re1 {[%emt 0:00:09]} Nc5 {[%emt 0:00:09][%cal Bd7c5,Bc5e6,Be6g5,Bg5e4][%mdl 32]} 11. h3 {[%emt 0:00:08]} h6 {[%emt 0:00:05]} 12. Rb1 {[%emt 0:01:27]} a5 {[%emt 0:00:18]} 13. Ndb5 {[%emt 0:00:59][%cal Oe4e5]} Bd7 {[%emt 0:00:30]} 14. Bf4 {[%emt 0:00:13]} Ne6 {[%emt 0:01:21] White has an edge.} 15. Bd2 {[%emt 0:00:08]} Qb8 {[%emt 0:07:44]} 16. Bc1 {[%emt 0:10:36]} a4 {[%emt 0:11:35]} 17. b4 {[%emt 0:03:58]} (17. f4 $14) 17... axb3 $11 {[%emt 0:00:55]} 18. axb3 {[%emt 0:00:17]} Ng5 {[%emt 0:00:30]} 19. Kh2 {[%emt 0:04:40]} Qc8 {[%emt 0:03:00]} 20. h4 {[%emt 0:00:35]} (20. Bxg5 $1 $11 hxg5 21. Qd2) 20... Bxb5 $17 {[%emt 0:02:35] Black continues to play with concentration.} 21. Nxb5 {[%emt 0:07:52]} (21. Bb2 $17) 21... Ngxe4 $19 {[%emt 0:00:17] Excellent horsemanship.} 22. f3 {[%emt 0:01:56]} (22. Bxe4 {is a better defense.} Rxe4 (22... Nxe4 23. Qc2 $17) 23. Rxe4 Nxe4 24. Qf3) 22... c6 {[%emt 0:01:14]} 23. Qc2 {[%emt 0:11:02]} cxb5 {[%emt 0:03:39]} 24. Bh3 {[%emt 0:00:18]} Qc6 {[%emt 0:06:06]} 25. fxe4 {[%emt 0:00:06]} Nxe4 {[%emt 0:01:01]} (25... Rxe4 26. Bg2 d5 27. Bxe4 Nxe4 (27... dxe4 $2 28. Kh3 $19) 28. Bf4 $19) 26. Bg2 {[%emt 0:01:39][%cal Re1e4]} f5 {[%emt 0:02:51]} 27. Bf4 {[%emt 0:01:29]} (27. Re2 {keeps fighting.}) 27... d5 {[%emt 0:03:09]} 28. Rbc1 {[%emt 0:02:38]} Rac8 {[%emt 0:00:37][%cal Rb5c4]} 29. c5 {[%emt 0:02:12]} b4 {[%emt 0:03:56]} (29... Qxc5 $2 30. Qxc5 Nxc5 31. Rxe8+ (31. Bxd5+ Kh7 $18) 31... Rxe8 32. Rxc5 $18) 30. Qd3 {[%emt 0:01:33]} Kh7 {[%emt 0:00:10]} (30... Nxc5 $2 31. Qxd5+ (31. Bxd5+ Kh7 $18) 31... Qxd5 32. Bxd5+ Kh7 33. Rxe8 Rxe8 34. Rxc5 $18) 31. Re2 {[%emt 0:00:19]} h5 {[%emt 0:07:54]} (31... Nxc5 32. Rxe8 Nxd3 (32... Rxe8 $2 33. Qxd5 Qxd5 34. Bxd5 $19) 33. Rxc6 Rxe8 34. Rc7) 32. Bd2 {[%emt 0:03:30]} Be5 {[%emt 0:02:10]} ({Resist} 32... Nxc5 33. Rxe8 Qxe8 (33... Nxd3 $2 34. Rxc6 Rxe8 35. Rc7 $19) 34. Qxd5 $19) 33. Bxe4 {[%emt 0:00:44]} (33. Kg1 $142) 33... fxe4 {[%emt 0:00:25]} 34. Qe3 {[%emt 0:00:56]} d4 {[%emt 0:00:58]} 35. Qh6+ {[%emt 0:00:30]} Kg8 {[%emt 0:00:21]} 36. Rf1 {[%emt 0:00:29]} Bg7 {[%emt 0:01:33]} (36... Qxc5 $2 {too greedy.} 37. Qxg6+ Bg7 38. Rf7 $18) 37. Qg5 {[%emt 0:00:23]} Re5 {[%emt 0:00:16] Weighted Error Value: White=0.75/Black=0.07 (flawless) .  Mistake:       	White=6     	---        OK:         	White=9     	Black=10     Best:        	---       	Black=3} ({Less strong is} 37... Qxc5 38. Qxg6 Qb5 39. Ref2 $11) 0-1

[Event "RUDAR VI-GM 2024"]
[Site "Pozarevac"]
[Date "2024.02.12"]
[Round "4.2"]
[White "Garifullina, Leya"]
[Black "Volkov, Dmitriy"]
[Result "1-0"]
[ECO "E60"]
[WhiteElo "2422"]
[BlackElo "2268"]
[Annotator "TA"]
[PlyCount "75"]
[EventDate "2024.02.12"]
[EventType "tourn"]
[EventCountry "SRB"]
[SourceTitle "playchess.com"]
[Source "ChessBase"]
[SourceQuality "1"]
[TimeControl "5400+30"]

{[%evp 15,75,15,23,7,45,45,46,46,67,47,47,42,39,26,49,27,63,45,42,29,41,35,87,47,69,71,78,58,153,170,154,141,199,170,257,259,443,439,501,514,465,470,454,458,566,561,751,710,736,692,733,728,712,713,866,815,1016,989,1510,1518,1482,1431]} 1. d4 {[%emt 0:00:28]} Nf6 {[%emt 0:00:11]} 2. c4 {[%emt 0:00:07]} g6 {[%emt 0:00:05]} 3. Nf3 {[%emt 0:00:10]} Bg7 {[%emt 0:00:06]} 4. g3 {[%emt 0:00:06]} O-O {[%emt 0:00:08]} 5. Bg2 {[%emt 0:00:04]} d6 {[%emt 0:00:04]} 6. O-O {[%emt 0:00:07]} Nc6 {[%emt 0:00:05]} 7. d5 {[%emt 0:00:13]} Na5 {[%emt 0:00:11]} 8. Na3 {[%emt 0:00:06]} c5 {[%emt 0:01:40]} 9. Re1 {[%emt 0:00:35]} e5 {[%emt 0:10:27]} 10. e4 {[%emt 1:33:34]} b6 {[%emt 0:03:29]} 11. Bd2 {[%emt 0:00:00] White is slightly better.} Nb7 {[%emt 0:02:27]} 12. Qc1 {[%emt 0:00:00]} Bd7 {[%emt 0:04:53]} 13. Nh4 {[%emt 0:00:00]} Ne8 {[%emt 0:12:06]} 14. Bf1 {[%emt 0:00:00]} Qe7 {[%emt 0:09:25]} 15. Bd3 {[%emt 0:00:00]} Bh3 {[%emt 0:06:17]} 16. Qc2 {[%emt 0:03:00]} Bf6 {[%emt 0:46:56]} 17. Ng2 {[%emt 0:00:00]} Ng7 {[%emt 0:00:30]} 18. Nb5 {[%emt 0:00:00]} Rfe8 {[%emt 0:00:00]} (18... Bg5 $14) 19. Nc3 {[%emt 0:00:00] White is more active.} Qd8 {[%emt 0:00:00]} 20. f3 {[%emt 0:02:00][%cal Bf2f3,Bf3f4,Bf4f5][%mdl 32]} Bg5 {[%emt 0:01:30]} 21. f4 {[%emt 0:00:00]} Bh6 {[%emt 0:00:00] Black is on the road to losing.} ({Better is} 21... exf4 $1 $14 22. Nxf4 (22. gxf4 Bf6 $14) 22... Bd7) 22. f5 $16 {[%emt 0:00:00]} Bxd2 {[%emt 0:00:00]} 23. Qxd2 {[%emt 0:00:00]} Bxg2 {[%emt 0:00:00]} (23... Nh5 $16 24. Ne3 Qg5) 24. Kxg2 $18 {[%emt 0:02:00]} (24. Qxg2 Qg5 25. Kh1 Kh8 $16) 24... g5 {[%emt 0:00:00] Black is weak on the light squares} (24... Nh5 {was necessary.} 25. Be2 Nf6) 25. h4 {[%emt 0:00:00]} h6 {[%emt 0:00:00] [#]} (25... g4 26. Qg5 f6 27. Qxg4 Kh8) 26. Rh1 {[%emt 0:00:00][%cal Be1h1,Bh1h6,Bh6g6,Bg6g7][%mdl 32] White is clearly winning.} f6 {[%emt 0:00:00]} 27. hxg5 {[%emt 0:00:00]} hxg5 {[%emt 0:00:00]} 28. Rh6 {[%emt 0:00:00]} Kf7 {[%emt 0:00:00][%cal Bg8f7,Bf7e8,Be8d8,Bd8c8][%mdl 32]} 29. Rah1 {[%emt 0:00:00]} Rg8 {[%emt 0:00:00]} 30. Nd1 {[%emt 0:03:00][%cal Bc3d1,Bd1e3,Be3g4][%mdl 32]} Qe7 {[%emt 0:00:00]} 31. Ne3 {[%emt 0:00:00] [#] aiming for Ng4.} Raf8 {[%emt 0:00:00]} 32. Ng4 {[%emt 0:00:00]} Ke8 {[%emt 0:00:00]} 33. Rg6 {[%emt 0:00:00]} Kd8 {[%emt 0:00:00]} 34. Rh7 {[%emt 0:00:00]} Kc8 {[%emt 0:07:00]} 35. Nh6 {[%emt 0:00:00]} Rh8 {[%emt 0:00:00]} 36. Rhxg7 {[%emt 0:00:00]} Qxg7 {[%emt 0:00:00]} 37. Rxg7 {[%emt 0:00:00]} Rxh6 {[%emt 0:00:00]} 38. Qd1 {[%emt 0:00:00] Weighted Error Value: White=0.07 (flawless) /Black=0.46.  Mistake:       	---       	Black=5      Inaccurate:     	White=1     	Black=3      OK:         	White=8     	Black=7      Best:        	White=2     	---} 1-0

[Event "RUDAR VI-GM 2024"]
[Site "Pozarevac"]
[Date "2024.02.12"]
[Round "4.3"]
[White "Ahmadzada, Ahmad"]
[Black "Velpula Sarayu"]
[Result "1-0"]
[ECO "B91"]
[WhiteElo "2501"]
[BlackElo "2444"]
[Annotator "TA"]
[PlyCount "69"]
[EventDate "2024.02.12"]
[EventType "tourn"]
[EventCountry "SRB"]
[SourceTitle "playchess.com"]
[Source "ChessBase"]
[SourceQuality "1"]
[TimeControl "5400+30"]

{[%evp 11,69,14,18,0,16,10,2,-1,48,21,35,30,19,24,41,14,22,25,36,39,111,54,106,112,112,95,114,136,109,128,116,98,121,47,132,114,154,141,144,162,159,156,160,155,160,168,155,163,243,222,585,583,558,313,2210,2416,1732,397,29992,29993]} 1. e4 {[%emt 0:04:07]} c5 {[%emt 0:00:27]} 2. Nf3 {[%emt 0:00:06]} d6 {[%emt 0:00:31]} 3. d4 {[%emt 0:00:07]} cxd4 {[%emt 0:00:29]} 4. Nxd4 {[%emt 0:00:05]} Nf6 {[%emt 0:00:27]} 5. Nc3 {[%emt 0:00:07]} a6 {[%emt 0:00:31]} 6. g3 {[%emt 0:00:05]} e5 {[%emt 0:00:30]} 7. Nf3 {[%emt 0:00:18]} Be7 {[%emt 0:00:57]} 8. Bg2 {[%emt 0:00:06]} b5 {[%emt 0:02:17]} 9. a4 {[%emt 0:00:36] The position is equal.} bxa4 {[%emt 1:28:51]} (9... b4 $11 {is more appropriate.} 10. Nd5 Nxd5 11. Qxd5 Ra7) 10. Rxa4 {[%emt 0:05:32]} Nbd7 {[%emt 0:00:00]} 11. O-O {[%emt 0:04:46]} Nc5 {[%emt 0:00:00]} 12. Ra1 {[%emt 0:02:44]} Bb7 {[%emt 0:00:00]} 13. Nh4 {[%emt 0:02:53]} g6 {[%emt 0:00:00] Against Nf5} 14. Bh6 {[%emt 0:02:53][%cal Bc1h6,Bh6g7,Bg7e5][%mdl 32]} Nfxe4 {[%emt 0:00:00]} 15. Nxe4 {[%emt 0:06:06]} Nxe4 {[%emt 0:00:00]} (15... Bxe4 $14 16. Bxe4 Nxe4) 16. Qe2 {[%emt 0:04:16]} (16. Re1 $1 $16 d5 17. Bg7) 16... d5 {[%emt 0:00:00]} (16... Nc5 $1 $14) 17. Bg7 $16 {[%emt 0:01:56][%csl LRe5,LRh8]} Rg8 {[%emt 0:00:00]} 18. Bxe5 {[%emt 0:00:48]} Bxh4 {[%emt 0:00:00]} 19. gxh4 {[%emt 0:03:00]} f6 {[%emt 0:00:00]} 20. Bd4 {[%emt 0:06:40]} Kf7 {[%emt 0:00:00]} 21. Rfe1 {[%emt 0:00:53] aiming for f3.} Re8 {[%emt 0:00:00]} 22. Qe3 {[%emt 0:00:29]} (22. Qf3 $16 {Qb3 would now be deadly.} Bc8 23. Qf4) 22... Qc7 {[%emt 0:06:30]} ({Black should play} 22... Nd6 $1 $14 23. Qh6 Kg8) 23. c3 {[%emt 0:10:27]} Ng5 {[%emt 0:00:00] [#]} 24. Qd2 $36 {[%emt 0:02:32][%mdl 2048] White is on the roll. Some like it hot} Ne6 {[%emt 0:00:00]} 25. Qh6 {[%emt 0:00:57]} Kg8 {[%emt 0:00:00]} 26. Bxf6 {[%emt 0:01:53]} Qf7 {[%emt 0:00:00]} 27. Be5 {[%emt 0:02:04] White has more active pieces. Black is weak on the dark squares} Nc5 {[%emt 0:00:00]} 28. Rad1 {[%emt 0:02:41][%cal Ba1d1,Bd1d3,Bd3e3][%mdl 32] Inhibits Nd3.} Ne4 {[%emt 0:00:00]} 29. Bd4 {[%emt 0:00:49]} Re7 {[%emt 0:00:00]} (29... Rad8 $142 30. Qc1 Rd7) 30. Rd3 $18 {[%emt 0:03:45] Black must now prevent Rf3.} Nd6 $2 {[%emt 0:00:00]} (30... Qf8 {is tougher.} 31. Qxf8+ Kxf8) 31. Rxe7 {[%emt 0:02:16]} Qxe7 {[%emt 0:00:00]} 32. Re3 {[%emt 0:00:18]} Qf7 {[%emt 0:00:00]} (32... Qf8 33. Qxf8+ Rxf8) 33. Bh3 {[%emt 0:00:22] This pair of bishops is nice.} Bc8 {[%emt 0:02:49] Repels Be6} 34. Qg5 $2 {[%emt 0:00:06]} (34. Re6 {[%cal Oh4h5] h5! is the strong threat.} Rb8 35. h5 (35. Rxd6 Bxh3 36. Rxa6 Re8 $18) (35. Rf6 Qg7 $18) 35... Bxe6 36. Bxe6) 34... Bxh3 $2 {[%emt 0:00:41] [#]} (34... Bf5 $18 35. Re7 Ne4 36. Rxf7 Nxg5 37. Rg7+ Kf8) 35. Qe5 $1 {[%emt 0:00:11] Weighted Error Value: White=0.32/Black=0.52.  Mistake:       	White=2     	Black=7      Inaccurate:     	White=3     	Black=1      OK:         	White=8     	Black=8      Best:        	White=5     	Black=1} ({Weaker is} 35. Rxh3 Nf5 $16) 1-0

[Event "RUDAR VI-GM 2024"]
[Site "Pozarevac"]
[Date "2024.02.12"]
[Round "4.4"]
[White "Apaar Saxena"]
[Black "Sutormin, Danila"]
[Result "0-1"]
[ECO "E60"]
[WhiteElo "2150"]
[BlackElo "2353"]
[Annotator "TA"]
[PlyCount "38"]
[EventDate "2024.02.12"]
[EventType "tourn"]
[EventCountry "SRB"]
[SourceTitle "playchess.com"]
[Source "ChessBase"]
[SourceQuality "1"]
[TimeControl "5400+30"]

{[%evp 9,38,25,29,21,28,31,20,24,33,0,22,-44,-51,-127,-125,-120,-135,-123,-98,-93,-106,-239,-241,-335,-352,-817,-828,-1056,-1028,-1000,-1000]} 1. d4 {[%emt 0:00:04]} Nf6 {[%emt 0:05:04]} 2. c4 {[%emt 0:00:04]} g6 {[%emt 0:00:07]} 3. g3 {[%emt 0:00:07]} Bg7 {[%emt 0:00:29]} 4. Bg2 {[%emt 0:00:04]} c5 {[%emt 0:00:35]} 5. dxc5 {[%emt 0:00:11]} Qa5+ {[%emt 0:00:20]} 6. Nc3 {[%emt 0:00:08]} Qxc5 {[%emt 0:00:08]} 7. Bd2 {[%emt 0:00:05]} O-O {[%emt 0:00:56]} 8. Rc1 {[%emt 0:00:11][%cal Ob2b4] The position is equal.} Nc6 {[%emt 0:00:12]} 9. b3 {[%emt 0:00:08]} Rd8 {[%emt 0:00:20]} 10. Nh3 {[%emt 0:03:52] [#]} (10. e4 $11) 10... d5 $1 $40 {[%emt 0:17:01][%mdl 128] White needs to defend precisely.} 11. Nxd5 {[%emt 0:09:48]} ({Better is} 11. cxd5 $15 Bxh3 12. Bxh3 Nxd5 13. Nb1) (11. Nf4 dxc4) 11... Bxh3 $17 {[%emt 0:00:16]} 12. Nxf6+ {[%emt 0:02:00]} Bxf6 {[%emt 0:01:42]} 13. Bxh3 {[%emt 0:00:03]} Bg5 {[%emt 0:02:56] Black is much more active.} 14. e3 {[%emt 0:02:06] [#]} Ne5 $1 {[%emt 0:03:11][%mdl 1024] Strongly threatening ...Qc6. Black has strong compensation.} 15. Kf1 {[%emt 0:12:00] [#] This move loses the game for White.} (15. Bg4 $17) 15... Qd6 $1 $19 {[%emt 0:04:56]} 16. Rc2 {[%emt 0:00:05]} Qd3+ {[%emt 0:03:23]} 17. Kg2 $2 {[%emt 0:01:56]} (17. Kg1 Nf3+ 18. Qxf3 Qxc2 19. Ba5) 17... Qe4+ {[%emt 0:00:26] Black is clearly winning.} 18. f3 {[%emt 0:00:32] [#]} Nxf3 $1 {[%emt 0:00:17][%mdl 512]} 19. Qxf3 {[%emt 0:00:03]} Qxc2 {[%emt 0:00:11] Weighted Error Value: White=0.83/Black=0.04 (flawless) .  Mistake:       	White=4     	---        Inaccurate:     	White=2     	---        OK:         	White=4     	Black=2      Best:        	---       	Black=2      Strong:       	---       	Black=2      Brilliant:      	---       	Black=1} 0-1